bitfinex-derivatives/quotes_SOLF0:USTF0_20250609
["timestamp","ask_amount","ask_price","bid_price","bid_amount"]
[1749439684149,5.63124864,150.89,150.88,9.62321782]
[1749439684645,5.63374964,150.89,150.88,9.62326428]
[1749439684841,5.63374964,150.89,150.88,9.62334735]
[1749439685041,5.63374964,150.89,150.88,9.62334761]
[1749439685345,5.63374964,150.89,150.88,9.62330607]
[1749439685550,5.63374964,150.89,150.88,9.62195625]
[1749439685739,0.04983992,150.89,150.88,6.6245]
[1749439686046,0.04983992,150.89,150.88,9.61641266]
[1749439686748,0.04983992,150.89,150.88,9.61640665]
[1749439687246,0.04983992,150.89,150.88,9.61640446]
[1749439687538,0.04983992,150.89,150.88,6.6245]
[1749439687742,0.04983992,150.89,150.88,9.61549854]
[1749439687945,5.63182996,150.89,150.88,2.99099854]
[1749439688143,5.63182996,150.89,150.86,33.5234131]
[1749439688343,5.58199004,150.88,150.86,33.5234131]
[1749439688538,5.58199004,150.87,150.86,40.1488131]
[1749439693551,5.58199004,150.87,150.86,33.5234131]
[1749439694049,12.20689004,150.87,150.86,0.0434131]
[1749439694248,9.89047646,150.87,150.79,415.12]
[1749439694444,11.67573067,150.86,150.8,2.99560519]
[1749439694642,9.89047646,150.85,150.79,33.48]
[1749439694853,5.58199004,150.84,150.79,33.48]
[1749439695046,5.58199004,150.83,150.8,2.99599085]
[1749439695247,5.58199004,150.82,150.8,2.99599085]
[1749439695447,0.04667463,150.83,150.8,2.99599085]
[1749439695657,5.57904023,150.82,150.81,6.6273]
[1749439695843,0.04667463,150.83,150.81,6.6273]
[1749439696052,5.57836333,150.82,150.77,33.48]
[1749439696246,12.20626333,150.81,150.78,2.9957497]
[1749439696552,4.35516105,150.83,150.79,2.99850366]
[1749439696851,6.6279,150.81,150.77,40.109]
[1749439697051,4.35516105,150.83,150.78,2.99804054]
[1749439697249,6.6278,150.81,150.78,2.99804054]
[1749439697552,6.6278,150.81,150.78,6.6288]
[1749439697751,6.6278,150.81,150.77,33.48]
[1749439697950,6.6278,150.81,150.78,2.99805529]
[1749439698253,6.6278,150.81,150.77,33.48]
[1749439698447,6.6278,150.81,150.78,6.6286]
[1749439698650,6.6271,150.82,150.77,33.48]
[1749439698956,0.04667463,150.83,150.8,6.6276]
[1749439699246,0.04667463,150.83,150.78,4.30848642]
[1749439699447,0.04667463,150.83,150.79,2.99816003]
[1749439699650,0.04667463,150.83,150.8,7.30645314]
[1749439699954,0.04667463,150.83,150.8,4.30848642]
[1749439700152,0.04667463,150.83,150.81,9.62545991]
[1749439700354,0.04667463,150.83,150.82,2.99795991]
[1749439700558,0.04667463,150.83,150.82,3.01413156]
[1749439700749,0.04667463,150.83,150.81,6.6275]
[1749439701955,0.04667463,150.83,150.81,40.0475]
[1749439702555,0.04667463,150.83,150.82,6.6271]
[1749439703055,0.04667463,150.83,150.82,9.644673]
[1749439703256,0.04667463,150.83,150.82,6.6271]
[1749439703857,0.04667463,150.83,150.82,9.64498107]
[1749439704556,0.04667463,150.83,150.82,3.01803709]
[1749439704557,5.59941911,150.83,150.82,3.01803709]
[1749439704857,5.59941911,150.83,150.81,33.42]
[1749439705157,0.04667463,150.83,150.81,33.42]
[1749439705353,0.04667463,150.83,150.82,3.01807433]
[1749439705650,5.59987684,150.83,150.81,33.42]
[1749439705847,0.04667463,150.83,150.81,33.42]
[1749439706957,0.04667463,150.83,150.81,40.0474]
[1749439710464,6.67337463,150.83,150.81,40.0474]
[1749439712161,0.04667463,150.83,150.81,40.0474]
[1749439714764,0.04667463,150.83,150.82,6.6271]
[1749439715066,5.59634789,150.83,150.82,6.6271]
[1749439715266,0.04667463,150.83,150.82,6.6271]
[1749439717464,0.04667463,150.83,150.82,13.95191758]
[1749439718470,0.04667463,150.83,150.82,13.95182634]
[1749439718670,0.04667463,150.83,150.82,13.95179969]
[1749439718871,0.04667463,150.83,150.82,10.93558642]
[1749439719269,0.04667463,150.83,150.82,13.95178929]
[1749439719772,0.04667463,150.83,150.82,13.95254501]
[1749439719972,0.04667463,150.83,150.82,13.95255541]
[1749439720271,0.04667463,150.83,150.82,13.9531096]
[1749439721869,0.04667463,150.83,150.82,13.94497779]
[1749439722171,0.04667463,150.83,150.82,13.94498819]
[1749439722570,0.04667463,150.83,150.82,13.94551781]
[1749439723665,0.04667463,150.83,150.82,13.94517977]
[1749439723872,0.04667463,150.83,150.82,13.94519324]
[1749439724074,0.04667463,150.83,150.82,13.94518853]
[1749439724275,0.04667463,150.83,150.82,10.93558642]
[1749439724476,0.04667463,150.83,150.82,13.94519619]
[1749439725176,0.04667463,150.83,150.82,13.94570664]
[1749439725674,0.04667463,150.83,150.82,10.93558642]
[1749439726180,0.04667463,150.83,150.82,13.94578166]
[1749439726677,0.04667463,150.83,150.82,9.63729524]
[1749439726976,0.04667463,150.83,150.82,9.63730564]
[1749439727373,0.04667463,150.83,150.82,6.6271]
[1749439727876,0.04667463,150.83,150.82,9.63730564]
[1749439728071,0.04667463,150.83,150.82,9.63714069]
[1749439728578,0.04667463,150.83,150.82,9.63709688]
[1749439728975,0.04667463,150.83,150.82,6.6271]
[1749439729175,0.04667463,150.83,150.82,9.63767995]
[1749439729475,0.04667463,150.83,150.82,9.63766955]
[1749439729667,0.04667463,150.83,150.82,9.63763834]
[1749439730475,0.04667463,150.83,150.82,6.6271]
[1749439730879,0.04667463,150.83,150.82,9.64277346]
[1749439731775,0.04667463,150.83,150.82,6.6271]
[1749439731979,0.04667463,150.83,150.82,9.64277346]
[1749439732279,0.04667463,150.83,150.82,6.6271]
[1749439732477,0.04667463,150.83,150.82,9.64277346]
[1749439732672,0.04667463,150.83,150.82,6.6271]
[1749439732877,0.04667463,150.83,150.82,9.64277346]
[1749439733280,0.04667463,150.83,150.82,6.6271]
[1749439733477,0.04667463,150.83,150.82,9.64277346]
[1749439734475,0.04667463,150.83,150.82,9.64275483]
[1749439734677,0.04667463,150.83,150.82,6.6271]
[1749439735181,0.04667463,150.83,150.82,13.95124171]
[1749439736179,0.04667463,150.83,150.82,13.95140665]
[1749439736375,0.04667463,150.83,150.82,10.93558642]
[1749439736781,0.04667463,150.83,150.82,13.95140665]
[1749439737184,0.04667463,150.83,150.82,13.95145532]
[1749439737782,0.04667463,150.83,150.82,13.95129088]
[1749439737981,0.04667463,150.83,150.82,13.95129527]
[1749439738887,0.04667463,150.83,150.82,13.95131611]
[1749439739486,0.04667463,150.83,150.82,10.93558642]
[1749439739685,0.04667463,150.83,150.82,13.95129063]
[1749439741485,0.04667463,150.83,150.82,13.94890113]
[1749439741986,0.04667463,150.83,150.82,13.94885944]
[1749439742785,0.04667463,150.83,150.82,13.9488318]
[1749439742987,0.04667463,150.83,150.82,13.94883148]
[1749439743177,0.04667463,150.83,150.82,12.40097659]
[1749439743485,0.04667463,150.83,150.82,12.40101802]
[1749439744088,7.463e-05,150.83,150.82,9.64038675]
[1749439744286,7.463e-05,150.83,150.82,12.40101802]
[1749439744789,7.463e-05,150.83,150.82,12.40088229]
[1749439745088,7.463e-05,150.83,150.82,9.38773127]
[1749439745288,7.463e-05,150.83,150.82,12.40084426]
[1749439745488,7.463e-05,150.83,150.82,9.38773127]
[1749439745688,7.463e-05,150.83,150.82,12.40060529]
[1749439745889,6.11454229,150.88,150.87,6.6249]
[1749439746085,9.75375386,150.88,150.87,6.6249]
[1749439746289,9.7538364,150.88,150.87,6.6249]
[1749439746490,5.58418768,150.88,150.87,6.6249]
[1749439747097,9.75386834,150.88,150.87,6.6249]
[1749439747285,5.58418768,150.88,150.87,6.6249]
[1749439747485,9.75412255,150.88,150.87,6.6249]
[1749439747794,9.75360699,150.88,150.87,6.6249]
[1749439747991,5.58418768,150.88,150.87,6.6249]
[1749439748394,9.75365215,150.88,150.87,6.6249]
[1749439748695,6.16212112,150.89,150.88,6.6245]
[1749439748988,6.11454229,150.94,150.88,2.76063127]
[1749439749194,6.11454229,150.94,150.93,2.76063127]
[1749439749393,6.11454229,150.94,150.93,42.76293127]
[1749439749595,6.11454229,150.95,150.93,36.14063127]
[1749439749795,6.11454229,150.97,150.94,2.76063127]
[1749439750094,0.04813538,150.96,150.95,6.6214]
[1749439750299,0.04813538,150.96,150.95,9.61351052]
[1749439750491,6.11454229,151.01,150.95,2.99176377]
[1749439750792,12.73324229,151.02,150.96,2.99175272]
[1749439750992,4.16584297,151.01,150.97,33.36]
[1749439751193,4.16584297,151.01,150.98,37.66464746]
[1749439751395,4.20802001,151.01,150.98,37.70824294]
[1749439751592,0.04217704,151.01,150.98,33.40359548]
[1749439751993,6.6195,151.0,150.98,33.40359548]
[1749439752198,0.04217704,151.01,150.98,33.40359548]
[1749439752491,4.22097043,151.01,150.98,33.40359548]
[1749439752697,6.6192,151.0,150.98,33.40359548]
[1749439754193,6.66117704,151.01,150.98,33.40359548]
[1749439754595,0.04217704,151.01,150.98,33.40359548]
[1749439755598,0.04217704,151.01,150.98,40.02329548]
[1749439755790,0.04217704,151.01,150.98,33.40359548]
[1749439755995,0.04217704,151.01,150.99,4.30464746]
[1749439756397,0.04217704,151.01,151.0,6.6192]
[1749439759807,0.04217704,151.01,151.0,10.92384746]
[1749439761491,0.04217704,151.01,151.0,6.6192]
[1749439761692,0.04217704,151.01,151.0,10.92384746]
[1749439761893,6.6168,151.06,151.02,6.6183]
[1749439762093,6.6168,151.06,151.03,33.34]
[1749439762901,6.66139898,151.06,151.03,33.38709004]
[1749439763093,0.04459898,151.06,151.03,33.38709004]
[1749439763302,2.2341,151.13,151.05,4.30464746]
[1749439763506,2.2341,151.13,151.08,4.30464746]
[1749439763696,2.2341,151.13,151.08,33.34]
[1749439764104,6.6144,151.11,151.08,33.34]
[1749439764299,6.66350366,151.11,151.08,33.38250898]
[1749439764794,0.04910366,151.11,151.08,33.38250898]
[1749439765407,0.04910366,151.11,151.08,39.99810898]
[1749439766606,4.30464746,151.15,151.08,39.99810898]
[1749439766801,4.30464746,151.15,151.09,33.32]
[1749439767104,4.30464746,151.2,151.09,33.32]
[1749439767105,4.30464746,151.13,151.09,33.32]
[1749439767307,4.30464746,151.13,151.06,385.60464746]
[1749439767501,4.30464746,151.13,151.07,33.32]
[1749439767703,0.04575139,151.12,151.08,0.04942291]
[1749439767903,6.6145,151.11,151.08,0.04942291]
[1749439768104,0.04575139,151.12,151.08,0.04942291]
[1749439768503,0.04575139,151.12,151.09,6.615]
[1749439769205,0.04575139,151.12,151.08,6.66502291]
[1749439769406,4.35039885,151.12,151.08,0.04942291]
[1749439770505,6.6149,151.1,151.08,0.04942291]
[1749439771911,6.6153,151.09,151.08,0.04942291]
[1749439774214,6.6161,151.08,151.04,39.9371]
[1749439774818,6.6167,151.06,151.04,33.32]
[1749439775216,6.6167,151.06,151.03,6.66056127]
[1749439775410,6.66633563,151.07,151.04,6.6172]
[1749439775617,6.66633563,151.07,151.03,33.36276127]
[1749439775915,6.66633563,151.07,151.03,39.98036127]
[1749439776714,6.66633563,151.07,151.04,6.6174]
[1749439777919,0.05003563,151.07,151.04,6.6174]
[1749439778419,0.05003563,151.07,151.03,33.36276127]
[1749439779415,6.66653563,151.07,151.04,6.6174]
[1749439786429,0.05003563,151.07,151.03,33.36276127]
[1749439787132,6.66633563,151.07,151.03,33.36276127]
[1749439788631,0.05003563,151.07,151.03,33.36276127]
[1749439789031,6.6174,151.05,151.03,33.36276127]
[1749439789837,6.6175,151.04,151.03,0.04276127]
[1749439791637,12.06696596,151.04,151.03,0.04276127]
[1749439791839,6.6175,151.04,151.03,0.04276127]
[1749439792340,12.06696596,151.04,151.03,0.04276127]
[1749439792541,6.6175,151.04,151.03,0.04276127]
[1749439792841,12.06696596,151.04,151.03,0.04276127]
[1749439794138,12.06696596,151.04,151.0,37.98464746]
[1749439794139,6.6187,151.02,151.0,33.68]
[1749439794834,5.46011588,151.01,151.0,33.68]
[1749439798145,5.46011588,151.01,151.0,40.2992]
[1749439799037,5.46011588,151.01,151.0,33.68]
[1749439800646,5.46011588,151.01,151.0,40.2992]
[1749439800840,5.46011588,151.01,151.0,44.60384746]
[1749439801034,6.03796942,151.07,151.0,37.98464746]
[1749439801236,4.23144611,151.06,151.03,4.30464746]
[1749439801538,6.6169,151.06,151.03,4.30464746]
[1749439801749,6.6169,151.06,151.03,10.92234746]
[1749439801939,6.66359225,151.06,151.03,10.96535896]
[1749439802143,0.04669225,151.06,151.03,4.34765896]
[1749439802339,0.04669225,151.06,151.03,0.0430115]
[1749439802548,10.31850565,151.06,151.03,0.0430115]
[1749439802736,0.04669225,151.06,151.03,0.0430115]
[1749439802935,4.28132164,151.06,151.03,0.0430115]
[1749439803135,0.04669225,151.06,151.03,0.0430115]
[1749439803336,0.04669225,151.06,151.03,6.6609115]
[1749439803537,4.2814312,151.06,151.03,0.0430115]
[1749439803742,4.23106404,151.05,151.03,0.0430115]
[1749439803939,6.617,151.05,151.03,0.0430115]
[1749439804140,0.04669225,151.06,151.03,0.0430115]
[1749439804343,6.66359225,151.06,151.03,6.6607115]
[1749439804648,6.66359225,151.06,151.03,0.0430115]
[1749439805038,6.66359225,151.06,151.03,6.6607115]
[1749439805744,0.04669225,151.06,151.04,6.6171]
[1749439807546,6.66329225,151.06,151.03,6.6607115]
[1749439808347,6.66329225,151.06,151.04,6.6174]
[1749439808548,0.04669225,151.06,151.03,0.0430115]
[1749439809648,0.04669225,151.06,151.04,6.6171]
[1749439810541,0.04669225,151.06,151.03,6.6607115]
[1749439810742,6.66329225,151.06,151.03,10.96535896]
[1749439811446,0.04669225,151.06,151.03,0.0430115]
[1749439812251,6.6175,151.04,151.03,0.0430115]
[1749439813651,12.07067912,151.04,151.03,0.0430115]
[1749439815254,16.32120991,151.04,151.03,0.0430115]
[1749439815453,6.6191,151.01,150.98,2.1055]
[1749439815753,5.45432694,151.0,150.99,33.68]
[1749439818353,6.66584022,151.01,150.99,33.68]
[1749439818654,5.45330799,151.0,150.99,33.68]
[1749439819154,6.66584022,151.01,150.99,33.68]
[1749439819655,5.43996785,151.0,150.99,33.68]
[1749439820653,6.66584022,151.01,150.99,33.68]
[1749439820855,6.66584022,151.01,150.99,40.2996]
[1749439821056,0.04684022,151.01,150.99,40.2996]
[1749439821557,6.66564022,151.01,150.99,33.68]
[1749439822955,5.44051998,151.0,150.99,33.68]
[1749439823151,5.44051998,151.0,150.99,40.2997]
[1749439823357,0.04684022,151.01,150.99,40.2997]
[1749439824757,0.04684022,151.01,151.0,6.6192]
[1749439836964,5.49094248,151.01,151.0,6.6192]
[1749439843267,5.49094248,151.01,151.0,9.37369137]
[1749439846371,0.04684022,151.01,151.0,9.37369137]
[1749439846871,5.49220103,151.01,151.0,6.6192]
[1749439849677,5.49220103,151.01,150.99,43.05399137]
[1749439849870,0.04684022,151.01,150.99,43.05399137]
[1749439850066,5.45110019,151.0,150.99,33.68]
[1749439850369,8.20559156,151.0,150.99,33.68]
[1749439850574,8.20559156,151.0,150.98,0.04555757]
[1749439850776,5.45110019,150.99,150.98,0.04555757]
[1749439850972,12.07080019,150.99,150.98,0.04555757]
[1749439851173,14.82529156,150.99,150.98,0.04555757]
[1749439851380,19.05739346,150.99,150.98,0.04555757]
[1749439851578,6.6211,150.96,150.94,414.64]
[1749439851778,6.6211,150.96,150.94,33.34]
[1749439851979,2.75449137,150.98,150.94,33.34]
[1749439852276,5.44819903,150.97,150.94,33.34]
[1749439852478,2.75449137,150.98,150.94,36.09449137]
[1749439852479,5.44819903,150.96,150.94,36.09449137]
[1749439852771,0.04521017,150.97,150.94,36.09449137]
[1749439852981,5.44664664,150.96,150.94,36.09449137]
[1749439853279,0.04521017,150.97,150.94,33.34]
[1749439853467,5.44816695,150.96,150.94,33.34]
[1749439853671,6.66591017,150.97,150.94,39.9618]
[1749439853878,5.43165478,150.96,150.94,39.9618]
[1749439854079,0.04521017,150.97,150.94,39.9618]
[1749439854583,5.42964984,150.96,150.94,39.9618]
[1749439854778,0.04521017,150.97,150.94,33.34]
[1749439854975,12.05134813,150.96,150.94,33.34]
[1749439855181,6.6211,150.96,150.94,33.34]
[1749439855878,9.62704999,150.95,150.93,0.04222161]
[1749439856181,5.42875553,150.94,150.93,0.04222161]
[1749439856783,12.05065553,150.94,150.93,0.04222161]
[1749439857372,5.42875553,150.94,150.93,0.04222161]
[1749439857583,5.42875553,150.95,150.93,0.04222161]
[1749439857882,6.6212,150.96,150.93,0.04222161]
[1749439858087,5.42201934,150.95,150.93,0.04222161]
[1749439858282,6.6212,150.96,150.93,0.04222161]
[1749439858477,5.42215474,150.95,150.93,0.04222161]
[1749439858672,5.42215474,150.95,150.93,6.66452161]
[1749439859486,5.42215474,150.95,150.93,0.04222161]
[1749439859983,5.42215474,150.95,150.93,6.66452161]
[1749439860784,6.6212,150.96,150.93,6.66452161]
[1749439861088,5.41020779,150.95,150.94,6.6219]
[1749439861272,5.41020779,150.96,150.93,0.04222161]
[1749439861477,5.41020779,150.95,150.93,0.04222161]
[1749439861672,12.03140779,150.96,150.93,0.04222161]
[1749439861882,5.41020779,150.95,150.93,0.04222161]
[1749439862679,5.41020779,150.96,150.93,0.04222161]
[1749439862874,5.41020779,150.95,150.93,0.04222161]
[1749439863075,5.41020779,150.96,150.93,0.04222161]
[1749439863285,6.46780785,150.97,150.9,33.34]
[1749439863286,9.71760547,150.95,150.9,33.34]
[1749439863584,5.41020779,150.94,150.9,33.34]
[1749439863784,12.03220779,150.94,150.91,6.6229]
[1749439864185,12.03220779,150.94,150.9,33.34]
[1749439864383,12.03220779,150.94,150.9,33.38803308]
[1749439864581,12.03220779,150.94,150.9,40.01133308]
[1749439864785,12.03220779,150.94,150.9,33.38803308]
[1749439865288,12.03220779,150.94,150.91,6.6231]
[1749439865990,6.6223,150.93,150.91,6.6231]
[1749439866484,6.6227,150.92,150.9,33.38803308]
[1749439866680,0.04852918,150.93,150.9,33.38803308]
[1749439867486,6.67082918,150.93,150.9,40.01133308]
[1749439867888,0.04852918,150.93,150.9,33.38803308]
[1749439868088,0.04852918,150.93,150.92,6.6227]
[1749439868491,0.04852918,150.93,150.92,9.61897994]
[1749439868793,0.04852918,150.93,150.92,6.6227]
[1749439869092,0.04852918,150.93,150.92,9.61885609]
[1749439869585,0.04852918,150.93,150.92,6.6227]
[1749439869791,0.04852918,150.93,150.92,9.6185955]
[1749439869991,0.04852918,150.93,150.92,9.61855364]
[1749439870191,0.04852918,150.93,150.92,6.6227]
[1749439870387,0.04852918,150.93,150.92,9.61824171]
[1749439870592,0.04852918,150.93,150.92,6.6227]
[1749439870786,0.04852918,150.93,150.92,9.61828381]
[1749439871279,0.04852918,150.93,150.92,9.61274989]
[1749439871992,0.04852918,150.93,150.92,9.61279173]
[1749439872888,0.04852918,150.93,150.92,9.61346141]
[1749439873284,0.04852918,150.93,150.92,6.6227]
[1749439873488,0.04852918,150.93,150.92,9.61341955]
[1749439873685,0.04852918,150.93,150.92,9.61366479]
[1749439873889,0.04852918,150.93,150.92,6.6227]
[1749439875293,0.04852918,150.93,150.92,10.93009768]
[1749439875994,0.04852918,150.93,150.92,13.91801143]
[1749439876190,6.6205,150.98,150.95,6.6213]
[1749439877195,6.66247282,150.98,150.95,6.67225709]
[1749439877395,12.06783851,150.98,150.95,6.67225709]
[1749439877597,6.66247282,150.98,150.95,6.67225709]
[1749439877890,0.04197282,150.98,150.95,6.67225709]
[1749439878195,0.04197282,150.98,150.96,4.30739768]
[1749439879296,0.04197282,150.98,150.97,2.98758723]
[1749439879591,0.04197282,150.98,150.96,4.30739768]
[1749439879795,0.04197282,150.98,150.97,9.60990614]
[1749439880093,0.04197282,150.98,150.97,9.60990608]
[1749439880295,0.04197282,150.98,150.97,6.6205]
[1749439880595,0.04197282,150.98,150.97,9.60991044]
[1749439880791,0.04197282,150.98,150.97,6.6205]
[1749439880990,0.04197282,150.98,150.97,9.60991044]
[1749439881185,0.04197282,150.98,150.97,6.6205]
[1749439881394,0.04197282,150.98,150.96,6.6208]
[1749439881599,0.04197282,150.98,150.95,0.05095709]
[1749439881795,6.6208,150.97,150.95,0.05095709]
[1749439881994,0.04197282,150.98,150.95,0.05095709]
[1749439882498,0.04197282,150.98,150.96,6.621]
[1749439883193,0.04197282,150.98,150.97,6.6205]
[1749439884400,0.04197282,150.98,150.96,6.6208]
[1749439884799,0.04197282,150.98,150.95,0.05095709]
[1749439885500,0.04197282,150.98,150.96,6.621]
[1749439888901,0.04197282,150.98,150.97,6.6205]
[1749439889799,0.04197282,150.98,150.96,6.6209]
[1749439890803,0.04197282,150.98,150.97,2.98720972]
[1749439891205,0.04197282,150.98,150.97,2.98725196]
[1749439891707,6.66207282,150.98,150.97,2.98998706]
[1749439891908,0.04197282,150.98,150.97,2.98998706]
[1749439892204,0.04197282,150.98,150.97,2.9899868]
[1749439892402,0.04197282,150.98,150.96,6.6209]
[1749439892603,5.46979788,150.98,150.96,6.6209]
[1749439892803,0.04197282,150.98,150.97,2.99000805]
[1749439893003,0.04197282,150.98,150.97,2.99000777]
[1749439893206,0.04197282,150.98,150.97,2.98996579]
[1749439893396,5.47076512,150.98,150.97,2.98996579]
[1749439893809,0.04197282,150.98,150.97,9.61046579]
[1749439894309,0.04197282,150.98,150.97,9.61042356]
[1749439894607,0.04197282,150.98,150.97,6.6205]
[1749439895108,0.04197282,150.98,150.97,2.98990257]
[1749439895306,5.47260867,150.98,150.95,0.05095709]
[1749439895608,0.04197282,150.98,150.96,2.98922289]
[1749439895811,6.6205,150.97,150.96,2.98922289]
[1749439896008,6.6205,150.97,150.96,2.98653076]
[1749439896306,6.6205,150.97,150.96,2.98655223]
[1749439896509,0.04197282,150.98,150.95,0.05095709]
[1749439896710,0.04197282,150.98,150.96,2.98666891]
[1749439896897,0.04197282,150.98,150.97,2.98666891]
[1749439897101,5.47419975,150.98,150.96,9.60736891]
[1749439897306,0.04197282,150.98,150.97,2.98666891]
[1749439897504,5.47393413,150.98,150.96,2.98666891]
[1749439897810,5.47393413,150.98,150.95,4.35835477]
[1749439897811,0.04197282,150.98,150.97,2.98545627]
[1749439898010,0.04197282,150.98,150.95,4.35835477]
[1749439898207,0.04197282,150.98,150.96,2.98545628]
[1749439898409,0.04197282,150.98,150.97,9.60595628]
[1749439898708,0.04197282,150.98,150.97,13.91335396]
[1749439899301,0.04197282,150.98,150.97,13.91312445]
[1749439899703,0.04197282,150.98,150.97,13.91248545]
[1749439900106,0.04197282,150.98,150.97,13.912454]
[1749439900903,6.6181,151.03,151.0,6.6189]
[1749439901108,5.42747337,151.02,151.0,6.6189]
[1749439901506,6.6177,151.04,151.01,6.6187]
[1749439901706,5.42694432,151.03,151.01,6.6187]
[1749439901912,6.66813102,151.04,151.01,6.6187]
[1749439902113,5.42696672,151.03,151.01,6.6187]
[1749439902316,6.66813102,151.04,151.01,6.6187]
[1749439902515,5.42730824,151.03,151.01,6.6187]
[1749439902710,6.66813102,151.04,151.01,6.6187]
[1749439902906,5.42675116,151.03,151.02,6.6184]
[1749439903216,0.05043102,151.04,151.0,0.04965544]
[1749439903517,5.47891047,151.04,151.02,6.618]
[1749439903716,0.05043102,151.04,151.01,4.30739768]
[1749439903918,5.49321262,151.04,151.03,6.6179]
[1749439904114,0.05043102,151.04,151.03,6.6179]
[1749439904615,5.49321262,151.04,151.03,6.6179]
[1749439904810,0.05043102,151.04,151.03,6.6179]
[1749439905212,5.49321262,151.04,151.03,6.6179]
[1749439905416,0.05043102,151.04,151.03,6.6179]
[1749439905616,0.05043102,151.04,151.02,6.6183]
[1749439905812,0.05043102,151.04,151.01,4.30739768]
[1749439906006,0.05043102,151.04,151.02,2.97746004]
[1749439906410,0.05043102,151.04,151.01,4.30739768]
[1749439907624,0.05043102,151.04,151.02,6.6181]
[1749439908314,6.66803102,151.04,151.01,10.92599768]
[1749439912522,0.05043102,151.04,151.01,4.30739768]
[1749439912920,6.6186,151.02,151.0,0.04965544]
[1749439913723,6.6181,151.03,151.0,6.66875544]
[1749439914924,6.66813102,151.04,151.01,6.6188]
[1749439916019,6.66793102,151.04,151.02,6.6182]
[1749439916227,0.05043102,151.04,151.02,6.6182]
[1749439916627,0.05043102,151.04,151.0,0.04965544]
[1749439916827,5.49617465,151.04,151.0,0.04965544]
[1749439917222,5.49617465,151.04,151.02,6.6181]
[1749439917927,12.11367465,151.04,151.01,6.6186]
[1749439918127,0.05043102,151.04,151.0,0.04965544]
[1749439918528,0.05043102,151.04,151.01,6.6187]
[1749439918730,5.49691681,151.04,151.01,6.6187]
[1749439919729,0.05043102,151.04,151.02,6.6183]
[1749439920431,5.44514832,151.03,151.02,6.6183]
[1749439920929,0.05043102,151.04,151.02,6.6183]
[1749439921132,0.05043102,151.04,151.03,44.26529768]
[1749439923427,5.44657734,151.07,151.06,6.6166]
[1749439923628,5.44657734,151.09,151.05,4.30739768]
[1749439923822,5.44657734,151.08,151.05,4.30739768]
[1749439924028,5.44657734,151.07,151.06,6.6162]
[1749439924231,5.44657734,151.09,151.05,4.30739768]
[1749439924433,5.44657734,151.08,151.06,6.6162]
[1749439924633,5.44657734,151.07,151.06,6.6162]
[1749439924824,5.44657734,151.08,151.06,6.6162]
[1749439925024,5.44657734,151.07,151.06,6.6162]
[1749439925224,5.44657734,151.08,151.06,6.6162]
[1749439925424,5.44657734,151.07,151.06,6.6162]
[1749439925634,5.44657734,151.08,151.06,6.6162]
[1749439925834,6.65800576,151.09,151.06,6.6162]
[1749439926134,5.44513145,151.08,151.06,6.6162]
[1749439926329,0.04260576,151.09,151.07,6.6161]
[1749439926534,5.4442861,151.08,151.07,6.6161]
[1749439926933,5.4442861,151.08,151.06,6.6164]
[1749439927134,0.04260576,151.09,151.05,4.35320084]
[1749439927335,5.44293318,151.08,151.05,4.35320084]
[1749439927531,5.44293318,151.08,151.07,10.92329768]
[1749439927834,0.04260576,151.09,151.07,37.64739768]
[1749439928332,0.04260576,151.09,151.08,6.6157]
[1749439930632,0.04260576,151.09,151.07,44.26339768]
[1749439930832,4.35000344,151.09,151.05,0.04580316]
[1749439931032,5.45394551,151.08,151.05,0.04580316]
[1749439931336,6.6166,151.06,151.05,0.04580316]
[1749439932131,5.448221,151.06,151.05,0.04580316]
[1749439932331,6.6163,151.07,151.05,0.04580316]
[1749439932733,6.6166,151.06,151.05,0.04580316]
[1749439933432,12.06523582,151.06,151.05,0.04580316]
[1749439934237,6.6166,151.06,151.05,0.04580316]
[1749439934438,9.7560335,151.06,150.9,19.87]
[1749439934642,4.30739768,151.04,150.98,4.30739768]
[1749439934837,5.44863582,151.03,150.97,33.34]
[1749439935038,12.06693582,151.03,151.0,6.6191]
[1749439935241,4.30739768,151.06,151.0,6.6191]
[1749439935539,5.49122048,151.05,151.01,0.04646309]
[1749439935743,12.06516077,151.04,151.01,0.04646309]
[1749439936237,5.44736077,151.04,151.01,0.04646309]
[1749439936440,6.618,151.03,151.01,0.04646309]
[1749439937640,6.6176,151.04,151.01,0.04646309]
[1749439938348,6.6176,151.04,151.01,6.66526309]
[1749439939037,6.66105971,151.05,151.02,6.6181]
[1749439940440,5.44697084,151.04,151.02,6.6181]
[1749439940643,6.66105971,151.05,151.02,6.6181]
[1749439940843,5.44837841,151.04,151.02,6.6181]
[1749439941043,6.66105971,151.05,151.02,6.6181]
[1749439941245,5.44838081,151.04,151.02,6.6181]
[1749439941440,6.66105971,151.05,151.02,6.6181]